bitfinex-derivatives/quotes_ETHF0:USTF0_20251118
["timestamp","ask_amount","ask_price","bid_price","bid_amount"]
[1763446658244,0.53838,3012.7,3012.5,0.00409104]
[1763446658434,0.53855,3011.7,3011.0,1.34069272]
[1763446658638,0.53855,3011.7,3011.0,0.1494]
[1763446659148,0.53852,3011.9,3011.0,0.1494]
[1763446659443,1.1907877,3012.5,3011.0,0.1494]
[1763446659644,1.1907877,3012.5,3011.7,0.0049819]
[1763446659836,0.53851,3011.9,3011.7,0.0049819]
[1763446660742,0.53847,3012.2,3012.0,0.1494]
[1763446661139,0.53837,3012.7,3012.5,0.1494]
[1763446661741,0.53833,3012.9,3012.5,0.1494]
[1763446661940,0.53835,3012.8,3012.5,0.1494]
[1763446662249,0.53837,3012.7,3012.5,0.1494]
[1763446665836,2.40690248,3013.0,3012.9,0.2533]
[1763446665837,0.00250571,3013.0,3012.9,0.2533]
[1763446667346,0.54082571,3013.0,3012.5,0.1494]
[1763446667844,0.53835,3012.8,3012.5,0.1494]
[1763446668048,0.54083571,3013.0,3012.5,0.1494]
[1763446670546,0.00250571,3013.0,3012.5,0.1494]
[1763446670747,0.00250571,3013.0,3012.9,0.2533]
[1763446672448,0.00250571,3013.0,3012.5,0.1494]
[1763446672449,0.53833,3012.9,3012.5,0.1494]
[1763446673157,0.54081571,3013.0,3012.5,0.1494]
[1763446673456,0.53834,3012.9,3012.5,0.1494]
[1763446673662,0.00250571,3013.0,3012.5,0.1494]
[1763446673856,0.53833,3012.9,3012.5,0.1494]
[1763446674155,0.53835,3012.8,3012.5,0.1494]
[1763446675156,0.00250571,3013.0,3012.5,0.1494]
[1763446675458,2.40439677,3012.9,3012.0,0.1494]
[1763446675645,0.53839,3012.6,3012.0,0.1494]
[1763446675954,0.5384,3012.5,3012.0,0.1494]
[1763446676650,0.53843,3012.4,3012.0,0.1494]
[1763446677757,0.53841,3012.5,3012.0,0.1494]
[1763446678055,0.00250571,3013.0,3012.5,0.1428]
[1763446678257,0.53838,3012.6,3012.5,0.1428]
[1763446680658,0.53837,3012.7,3012.5,0.1428]
[1763446680857,0.00250571,3013.0,3012.5,0.1428]
[1763446681255,0.54083571,3013.0,3012.7,0.2445]
[1763446681458,0.53834,3012.9,3012.8,0.2445]
[1763446681654,0.00250571,3013.0,3012.9,0.2445]
[1763446683054,0.0049819,3013.1,3012.5,0.1428]
[1763446683055,0.0049819,3013.1,3013.0,0.3873]
[1763446683263,0.5382,3013.7,3013.6,0.2445]
[1763446683452,0.53815,3013.9,3013.6,0.2445]
[1763446683652,1.1907877,3014.3,3013.6,0.2445]
[1763446683957,1.1907877,3014.9,3014.5,0.1428]
[1763446684160,0.54216619,3014.9,3014.5,0.14573044]
[1763446684458,0.00417619,3014.9,3014.5,0.14573044]
[1763446684861,0.53799,3014.8,3014.5,0.14573044]
[1763446685462,0.53801,3014.7,3014.5,0.14573044]
[1763446685663,0.53801,3014.7,3014.5,0.00293044]
[1763446686165,0.53804,3014.5,3014.4,0.0049819]
[1763446686457,0.53804,3014.5,3014.4,0.2494819]
[1763446686659,0.54216619,3014.9,3014.5,0.1428]
[1763446686961,0.538,3014.8,3014.5,0.1428]
[1763446687261,0.54215619,3014.9,3014.5,0.14524594]
[1763446687461,0.538,3014.8,3014.5,0.14524594]
[1763446687860,0.53801,3014.7,3014.5,0.14524594]
[1763446688949,0.53801,3014.7,3014.5,0.00244594]
[1763446689362,0.53801,3014.7,3014.5,4.594e-05]
[1763446692859,0.53803,3014.6,3014.5,4.594e-05]
[1763446693065,0.53803,3014.6,3014.5,0.14284594]
[1763446693267,0.53802,3014.7,3014.6,0.2445]
[1763446694055,0.53803,3014.6,3014.5,0.14284594]
[1763446695664,0.00417619,3014.9,3014.5,0.14284594]
[1763446696171,0.00417619,3014.9,3014.8,0.2445]
[1763446697561,0.53803,3014.6,3014.5,4.594e-05]
[1763446699168,2.7575297,3014.9,3014.0,0.1428]
[1763446699367,0.53811,3014.1,3014.0,0.1428]
[1763446700472,0.53811,3014.1,3014.0,0.14580548]
[1763446700768,2.7575297,3014.9,3014.0,0.14580548]
[1763446700974,0.53811,3014.1,3014.0,0.14580548]
[1763446701670,2.767,3014.7,3014.0,0.14580548]
[1763446701873,0.53806,3014.4,3014.0,0.14580548]
[1763446702175,0.53805,3014.5,3014.3,0.2445]
[1763446702675,0.53805,3014.5,3014.0,0.14580548]
[1763446702676,0.53811,3014.1,3014.0,0.14580548]
[1763446702871,2.7575297,3014.9,3014.0,0.38520548]
[1763446703072,0.53807,3014.4,3014.3,0.2394]
[1763446703575,0.53804,3014.6,3014.5,0.1385]
[1763446703774,0.53804,3014.6,3014.5,0.3779]
[1763446704874,0.53799,3014.8,3014.7,0.2394]
[1763446705176,0.53803,3014.6,3014.5,0.1385]
[1763446705377,0.00417619,3014.9,3014.5,0.3779]
[1763446705580,0.54216619,3014.9,3014.5,0.3779]
[1763446705778,0.53799,3014.8,3014.5,0.3779]
[1763446705978,0.00417619,3014.9,3014.7,0.2394]
[1763446706679,0.54214619,3014.9,3014.7,0.2394]
[1763446707080,0.54214619,3014.9,3014.8,0.2394]
[1763446707585,0.00417619,3014.9,3014.8,0.2394]
[1763446709484,1.1907877,3015.6,3015.5,0.3849]
[1763446709681,1.1907877,3016.0,3015.5,0.3849]
[1763446709976,0.53784,3015.7,3015.5,0.3849]
[1763446710285,1.1907877,3016.0,3015.5,0.3849]
[1763446710577,0.00307145,3016.0,3015.5,0.3849]
[1763446710780,0.53785,3015.6,3015.5,0.1376]
[1763446711783,0.53786,3015.5,3015.4,0.0049819]
[1763446713383,3.94414121,3015.5,3014.5,0.1385]
[1763446713682,0.53797,3015.0,3014.5,0.1385]
[1763446714084,0.53797,3014.9,3014.5,0.1385]
[1763446714782,0.53801,3014.7,3014.5,0.1385]
[1763446714986,2.75335351,3015.1,3014.5,0.1385]
[1763446715386,0.53803,3014.6,3014.5,0.1385]
[1763446716382,0.53804,3014.5,3014.4,0.0049819]
[1763446717183,0.53811,3014.1,3014.0,5.48e-06]
[1763446717480,0.53825,3013.4,3013.0,0.1376]
[1763446717685,0.53828,3013.2,3013.0,0.1376]
[1763446717879,1.18827934,3013.8,3013.0,0.1376]
[1763446718081,0.53828,3013.2,3013.1,0.0049819]
[1763446718282,0.00345519,3013.2,3013.1,0.25492014]
[1763446718478,0.00345519,3013.2,3013.1,0.00762014]
[1763446719689,0.00345519,3013.2,3012.5,0.40066217]
[1763446719690,0.00345519,3013.2,3012.5,0.1376]
[1763446720892,0.00345519,3013.2,3012.5,0.14642914]
[1763446722082,2.75335351,3012.9,3012.5,0.00882914]
[1763446722277,2.75335351,3012.9,3012.0,0.1376]
[1763446722476,2.75335351,3012.2,3011.5,0.1376]
[1763446722677,2.75335351,3011.8,3010.5,0.1376]
[1763446722975,1.18827934,3012.2,3010.7,0.26346782]
[1763446723175,2.376,3012.1,3011.3,0.0049819]
[1763446723382,0.0049819,3011.9,3011.3,0.0049819]
[1763446723888,0.0049819,3011.9,3011.5,0.1376]
[1763446724184,0.0049819,3011.9,3011.8,0.2473]
[1763446725591,3.035,3012.9,3011.8,6.2473]
[1763446725784,3.035,3012.9,3011.8,0.2473]
[1763446726286,2.75335351,3012.2,3011.5,0.1376]
[1763446726484,5.38535351,3012.2,3011.5,0.1376]
[1763446726682,2.6369819,3012.2,3011.5,0.1376]
[1763446727280,5.39033541,3012.2,3011.5,0.1376]
[1763446727481,5.39033541,3012.2,3011.3,0.0049819]
[1763446727482,2.75335351,3011.8,3011.3,0.0049819]
[1763446728592,0.0049819,3012.2,3011.3,0.0049819]
[1763446728797,0.0049819,3012.2,3012.1,0.2473]
[1763446728984,0.0049819,3012.2,3012.0,0.1376]
[1763446729298,0.1431,3012.1,3011.5,0.1376]
[1763446732189,0.0049819,3012.2,3012.1,0.2473]
[1763446732390,0.0049819,3012.2,3012.0,0.1376]
[1763446732595,0.1431,3012.1,3011.5,0.1376]
[1763446732794,0.1431,3011.6,3011.3,0.0049819]
[1763446733391,2.75833541,3012.2,3011.5,0.3849]
[1763446733594,4.371,3012.1,3011.5,0.3849]
[1763446734498,2.75833541,3012.2,3011.5,0.1376]
[1763446734700,4.41333541,3012.2,3011.5,0.1376]
[1763446737206,5.297,3012.1,3011.5,0.1376]
[1763446738105,0.0049819,3012.2,3012.1,0.2467]
[1763446738606,2.204,3013.0,3012.9,0.2467]
[1763446739399,2.204,3013.0,3012.5,0.1451]
[1763446742505,0.1484,3012.6,3012.0,0.1451]
[1763446742804,2.204,3013.0,3012.5,0.3918]
[1763446743604,2.204,3013.0,3012.5,0.1451]
[1763446744595,0.00345519,3013.2,3013.1,0.2467]
[1763446746008,0.00345519,3013.2,3013.0,0.1451]
[1763446746402,0.00345519,3013.2,3013.1,0.2467]
[1763446747104,1.18827934,3014.0,3013.5,0.1451]
[1763446747404,3.94163285,3014.2,3013.5,0.1451]
[1763446747610,1.18827934,3014.3,3013.5,0.1451]
[1763446747801,1.18827934,3014.4,3013.5,0.1451]
[1763446747997,3.747,3014.5,3013.5,0.1451]
[1763446748198,1.18827934,3014.7,3013.5,0.1451]
[1763446748394,0.0049819,3014.4,3013.5,0.14931232]
[1763446749403,0.0049819,3014.4,3014.3,0.2467]
[1763446756517,0.00304388,3014.7,3014.0,0.1451]
[1763446756518,0.00304388,3014.7,3014.6,0.2467]
[1763446757914,0.16484388,3014.7,3014.5,0.1451]
[1763446758106,0.00304388,3014.7,3014.6,0.2467]
[1763446760313,1.18827934,3016.2,3015.0,0.1394]
[1763446760512,2.40103404,3016.2,3015.0,0.1394]
[1763446760806,2.40103404,3016.2,3016.0,0.1394]
[1763446761516,2.40428355,3016.2,3016.0,0.14298625]
[1763446762416,0.1643,3016.1,3016.0,0.00358625]
[1763446762717,0.1643,3016.1,3016.0,0.14298625]
[1763446764815,4.73503404,3017.2,3016.1,0.48920296]
[1763446765109,4.73745924,3017.2,3016.1,0.2293]
[1763446765509,4.73745924,3017.2,3016.1,0.49283482]
[1763446765911,4.73745924,3017.2,3016.1,0.2293]
[1763446766413,0.1675,3016.1,3016.0,0.14298625]
[1763446766614,2.40103404,3016.4,3016.0,0.37228625]
[1763446766915,2.40103404,3016.8,3016.0,0.37228625]
[1763446769122,0.1675,3016.1,3016.0,0.00358625]
[1763446770019,2.40103404,3016.7,3016.0,0.39118625]
[1763446770323,2.40103404,3016.7,3016.5,0.1423]
[1763446770717,0.1672,3016.6,3016.5,0.1423]
[1763446771913,0.1672,3016.1,3016.0,0.14588625]
[1763446773825,2.40103404,3016.6,3016.0,0.39118625]
[1763446774913,0.1672,3016.1,3016.0,0.14588625]
[1763446775222,0.1672,3015.9,3015.5,0.1394]
[1763446775422,2.56823404,3015.6,3014.0,3.73462676]
[1763446775629,2.56823404,3015.6,3014.0,2.54333404]
[1763446776018,0.1672,3015.1,3014.0,0.1423]
[1763446776413,0.1672,3015.1,3015.0,0.14283592]
[1763446777227,0.1672,3015.1,3015.0,0.00343592]
[1763446777431,0.00494469,3015.4,3015.1,0.2453]
[1763446778330,0.1672,3015.1,3015.0,0.00343592]
[1763446778529,2.56823404,3015.1,3015.0,0.00343592]
[1763446778721,2.56483404,3014.6,3013.6,0.2636456]
[1763446779122,2.40103404,3014.9,3014.5,0.3876]
[1763446779728,2.40487513,3014.9,3014.5,0.39187092]
[1763446780124,0.00384109,3014.9,3014.8,0.2453]
[1763446780326,0.00494469,3015.4,3014.8,0.2453]
[1763446780535,1.18827934,3016.1,3016.0,0.3876]
[1763446780733,0.1638,3016.1,3015.5,0.1423]
[1763446781031,2.56483404,3016.1,3015.5,0.1423]
[1763446781428,2.567192,3016.1,3015.5,0.1423]
[1763446781633,0.00733127,3016.1,3016.0,0.1423]
[1763446782734,0.00733127,3016.1,3016.0,0.3876]
[1763446782929,0.00733127,3016.1,3016.0,0.1423]
[1763446783132,0.17113127,3016.1,3015.5,0.1423]
[1763446783332,0.00733127,3016.1,3016.0,0.1423]
[1763446783532,0.00733127,3016.1,3016.0,0.3876]
[1763446786740,0.17113127,3016.1,3016.0,0.1423]
[1763446787927,0.00733127,3016.1,3016.0,0.1423]
[1763446788134,0.17113127,3016.1,3016.0,0.1423]
[1763446788737,0.17113127,3016.1,3015.5,0.1423]
[1763446789441,0.00733127,3016.1,3016.0,0.3876]
[1763446792846,1.18827934,3016.7,3016.5,0.3876]
[1763446793349,1.18827934,3016.7,3016.6,0.2453]
[1763446793540,1.18827934,3016.7,3016.5,0.1423]
[1763446793737,1.19132228,3016.7,3016.5,0.1423]
[1763446793937,0.00304294,3016.7,3016.6,0.2453]
[1763446797042,0.1711,3016.4,3016.3,0.00497331]
[1763446797245,0.00304294,3016.7,3016.3,0.23477331]
[1763446799146,0.00304294,3016.7,3016.5,0.1349]
[1763446799850,0.1711,3016.6,3016.5,0.1349]
[1763446800347,2.40103404,3016.6,3016.5,0.3647]
[1763446800548,0.1711,3016.6,3016.5,0.1349]
[1763446800747,0.1711,3016.6,3016.3,0.00497331]
[1763446800748,0.1711,3016.4,3016.3,0.00497331]
[1763446800943,0.1711,3016.4,3015.5,0.1423]
[1763446800944,0.1711,3016.1,3015.5,0.1423]
[1763446801146,0.1711,3015.6,3015.0,0.1423]
[1763446801338,2.40103404,3015.4,3015.0,0.1423]
[1763446801545,9.59317432,3015.8,3015.3,0.2298]
[1763446802345,8.40703404,3015.8,3015.3,0.2298]
[1763446802540,8.40703404,3015.8,3015.5,0.1349]
[1763446802745,2.40103404,3015.8,3015.5,0.1349]
[1763446803150,8.094,3015.8,3015.5,0.1349]
[1763446803349,0.00497331,3015.9,3015.8,0.2298]
[1763446806056,0.17607331,3015.9,3015.5,0.1349]
[1763446806752,0.1711,3015.3,3015.2,0.00497331]
[1763446807154,2.57213404,3015.3,3015.2,0.00497331]
[1763446807755,2.57213404,3015.3,3014.5,0.13917092]
[1763446807756,8.57213404,3015.3,3014.5,0.13917092]
[1763446807955,2.57213404,3014.6,3013.5,0.1349]
[1763446808154,10.66713404,3014.6,3013.5,0.1349]
[1763446808356,0.2441,3014.1,3013.5,0.1349]
[1763446808849,0.00267549,3014.1,3014.0,0.36713419]
[1763446813372,1.18614028,3015.0,3014.3,0.2298]
[1763446813570,1.18614028,3015.4,3014.3,0.2298]
[1763446813769,1.18614028,3015.6,3015.3,0.2298]
[1763446813975,4.71,3015.6,3015.3,0.2298]
[1763446814472,4.71334612,3015.6,3015.3,0.2298]
[1763446814776,8.09934612,3015.6,3015.3,0.2298]
[1763446814977,0.00334612,3015.6,3015.3,0.2298]
[1763446815173,8.09934612,3015.6,3015.3,0.2298]
[1763446817174,0.00334612,3015.6,3015.5,0.3647]
[1763446818280,0.24744612,3015.6,3015.1,0.00497331]
[1763446818482,0.2441,3015.2,3015.1,0.00497331]
[1763446818683,2.75341946,3015.5,3015.4,0.2298]
[1763446818876,2.99751946,3015.5,3015.1,0.00497331]
[1763446821885,0.227,3015.2,3014.5,0.1349]
[1763446822381,5.039,3015.2,3015.1,0.2359]
[1763446822583,0.227,3015.1,3015.0,0.1372]
[1763446822783,5.039,3015.2,3015.1,0.2359]
[1763446823784,0.00334612,3015.6,3015.1,0.2359]
[1763446823985,4.128,3015.5,3015.1,0.2359]
[1763446824186,0.00334612,3015.6,3015.1,0.2359]
[1763446824378,8.096,3015.5,3015.1,0.2359]
[1763446824578,0.00334612,3015.6,3015.1,0.2359]
[1763446824779,8.096,3015.5,3015.1,0.2359]
[1763446825078,8.09934612,3015.6,3015.5,0.3731]
[1763446825476,8.32634612,3015.6,3015.0,0.1372]
[1763446825980,8.32634612,3015.6,3015.5,0.1372]
[1763446826683,0.227,3014.9,3014.0,1.32862691]
[1763446826875,1.18240421,3014.6,3014.0,0.13733419]
[1763446827073,1.18240421,3014.7,3014.0,0.13733419]
[1763446827383,4.95040421,3014.6,3014.0,0.13733419]
[1763446827584,0.2364,3014.1,3013.5,0.1372]
[1763446827778,0.24137331,3014.1,3013.5,0.14217331]
[1763446828087,0.00497331,3014.1,3014.0,0.379]
[1763446828683,0.00497331,3014.1,3014.0,0.38136327]
[1763446829191,0.24137331,3014.1,3014.0,0.00236327]
[1763446829373,0.00497331,3014.1,3014.0,0.38136327]
[1763446830086,0.00497331,3014.1,3014.0,0.23856327]
[1763446830276,0.24137331,3014.1,3014.0,0.00236327]
[1763446830585,0.00497331,3014.1,3014.0,0.38136327]
[1763446830784,0.75233289,3014.1,3014.0,0.38136327]
[1763446831087,0.00497331,3014.1,3014.0,0.38136327]
[1763446832887,0.24137331,3014.1,3014.0,0.00236327]
[1763446833087,0.2364,3013.6,3013.5,0.00497331]
[1763446833287,0.2364,3013.6,3013.0,0.1372]
[1763446833589,0.2364,3013.1,3012.5,0.1372]
[1763446833778,2.75341946,3012.9,3012.0,0.1428]
[1763446833977,0.74776504,3012.8,3012.0,0.1428]
[1763446834176,0.75136884,3012.8,3012.1,0.00497331]
[1763446835289,8.85636884,3012.8,3012.1,0.00497331]
[1763446835490,8.1086038,3012.8,3012.1,0.00497331]
[1763446836088,0.2364,3012.2,3012.1,0.00497331]
[1763446836589,2.75839277,3012.5,3012.1,0.00497331]
[1763446836791,0.00497331,3012.5,3012.1,0.00497331]
[1763446837884,0.2364,3012.2,3012.1,0.00497331]
[1763446839383,0.74413803,3012.4,3012.1,0.00497331]
[1763446839791,4.105,3012.3,3012.1,0.00497331]
[1763446839987,8.104,3012.3,3012.1,0.00497331]
[1763446840892,0.2364,3012.2,3012.1,0.00497331]
[1763446842399,0.00497331,3012.5,3012.4,0.2362]
[1763446842886,0.24137331,3012.5,3012.1,0.00497331]
[1763446843498,0.2364,3012.2,3012.1,0.00497331]
[1763446846195,3.0614,3012.2,3012.1,0.24117331]
[1763446846392,0.00497331,3012.5,3012.1,0.24117331]
[1763446846594,8.10997331,3012.5,3012.1,0.24117331]
[1763446846799,0.2364,3012.2,3012.1,0.00497331]
[1763446849095,0.00497331,3012.5,3012.4,0.2362]
[1763446851596,0.00497331,3012.5,3012.4,6.2362]
[1763446852703,0.74362832,3013.3,3013.2,0.2362]
[1763446852902,0.2364,3013.3,3013.0,0.1428]
[1763446853701,0.2364,3013.1,3012.5,0.1428]
[1763446856703,0.2364,3012.6,3012.1,0.00497331]
[1763446857004,1.31730421,3013.0,3012.1,0.23727331]
[1763446857206,2.06138053,3013.0,3012.1,0.23727331]
[1763446858097,0.2487,3012.2,3012.1,0.00497331]
[1763446861003,0.0883,3012.0,3011.0,0.1428]
[1763446861303,2.75341946,3011.8,3011.0,0.1428]
[1763446861505,0.2487,3011.1,3010.5,0.1428]
[1763446861907,0.2487,3011.1,3010.5,0.00287397]
[1763446861908,0.2487,3010.6,3010.5,0.00287397]
[1763446862101,0.2487,3009.6,3009.0,0.145]
[1763446863105,0.2487,3009.6,3009.0,0.1525233]
[1763446863408,0.74853351,3009.8,3009.5,0.3773]
[1763446863607,6.05371041,3010.5,3009.7,0.2323]
[1763446863812,1.93466386,3010.4,3009.7,0.2323]
[1763446864111,0.74805345,3010.4,3009.7,0.2323]
[1763446864315,8.85505345,3010.4,3009.7,0.2323]
[1763446864510,0.74805345,3010.3,3010.2,0.2323]
[1763446864717,0.00866597,3011.1,3010.5,0.145]
[1763446864909,0.75619668,3011.1,3010.5,0.145]
[1763446865216,0.74753071,3011.0,3010.5,0.145]
[1763446865518,0.74753071,3010.9,3010.8,0.2323]
[1763446865706,0.00866597,3011.1,3011.0,0.3773]
[1763446871818,0.25736597,3011.1,3010.5,0.14998206]
[1763446873328,0.2487,3010.9,3010.8,0.02]
[1763446874621,0.00866597,3011.1,3011.0,0.3773]
[1763446875124,0.25736597,3011.1,3010.8,0.02]
[1763446875324,0.25736597,3011.1,3010.9,0.02]
[1763446875924,0.2487,3010.6,3010.5,0.00498206]
[1763446876130,0.1349,3010.5,3009.0,2.55422488]
[1763446876433,2.40668364,3010.2,3009.0,2.55422488]
[1763446876634,2.54158364,3010.5,3009.0,2.55422488]
[1763446877226,2.54158364,3010.5,3009.7,0.00332722]
[1763446877530,6.57658364,3010.5,3009.7,0.00332722]
[1763446877734,0.2487,3009.8,3009.0,0.14754124]
[1763446878127,2.65538364,3009.8,3009.0,0.14754124]
[1763446878328,2.65538364,3009.1,3009.0,0.00254124]
[1763446879136,0.2487,3009.1,3009.0,0.00254124]
[1763446879336,2.4116657,3009.4,3009.0,0.00254124]
[1763446879538,0.2454,3009.1,3009.0,0.00254124]
[1763446880238,2.65208364,3009.1,3009.0,0.00254124]
[1763446880629,0.1286,3009.0,3007.0,0.145]
[1763446880834,0.0883,3008.0,3007.0,0.145]
[1763446881031,0.00498206,3007.8,3007.0,0.145]
[1763446881338,0.00498206,3007.8,3007.7,0.2468]
[1763446881537,0.25038206,3007.8,3007.5,0.1438]
[1763446881739,0.25447701,3007.8,3007.7,0.00399373]
[1763446882434,0.00907701,3007.8,3007.7,0.00399373]
[1763446882736,0.00907701,3007.8,3007.7,0.25079373]
[1763446883341,0.25447701,3007.8,3007.7,0.00399373]
[1763446883641,0.00907701,3007.8,3007.7,0.25079373]
[1763446884145,1.092,3009.1,3007.7,6.25079373]
[1763446884436,1.092,3009.1,3007.7,0.25079373]
[1763446885242,0.00498206,3008.7,3008.6,0.2468]
[1763446889342,0.00367894,3009.1,3009.0,0.3795]
[1763446890437,0.00498206,3009.4,3009.3,0.2453]
[1763446891245,0.24908206,3009.4,3009.0,0.1342]
[1763446891543,0.25317923,3009.4,3009.0,0.1342]
[1763446891932,0.00907923,3009.4,3009.3,0.2453]
[1763446896142,2.40668364,3010.4,3009.3,0.2453]
[1763446896347,1.116,3010.5,3010.4,0.2453]
[1763446897144,1.11917237,3010.5,3010.4,0.24774398]
[1763446897336,1.36327237,3010.5,3010.4,0.00244398]
[1763446898038,1.11917237,3010.5,3010.4,0.24774398]
[1763446900745,1.36327237,3010.5,3010.4,0.00244398]
[1763446901653,0.00498206,3010.8,3010.7,0.2453]
[1763446902254,3.59329405,3011.9,3010.7,0.2453]
[1763446902255,1.27861041,3012.0,3011.4,0.2453]
[1763446902447,0.74363404,3011.9,3011.8,0.2453]
[1763446902649,0.00253441,3011.9,3011.8,0.2453]
[1763446902955,0.00253441,3011.9,3011.5,0.1342]
[1763446903246,0.00253441,3011.9,3011.8,0.2453]
[1763446903553,0.00253441,3011.9,3011.5,0.1342]
[1763446905051,0.00253441,3011.9,3011.8,0.2453]
[1763446906041,0.00498206,3012.0,3011.8,0.2453]
[1763446906254,1.14,3013.2,3012.0,0.1342]
[1763446906457,0.74161511,3013.1,3012.0,0.1342]
[1763446906647,1.14,3013.2,3012.0,0.1342]
[1763446907338,0.00498206,3012.9,3012.0,0.1342]
[1763446908051,2.40668364,3012.7,3011.5,0.1342]
[1763446909740,0.00498206,3012.9,3011.5,0.1342]
[1763446910052,0.00498206,3012.9,3012.8,0.2453]
[1763446910239,0.00498206,3012.9,3012.8,0.24785271]
[1763446911053,0.24908206,3012.9,3012.8,0.00255271]
[1763446911852,0.00498206,3012.9,3012.8,0.24785271]
[1763446912548,0.0346,3013.7,3013.1,0.2453]
[1763446913651,0.04137804,3013.7,3013.1,0.25028206]
[1763446914357,0.04137804,3013.7,3013.1,0.00498206]
[1763446915552,0.04137804,3013.7,3013.6,0.2453]
[1763446916655,0.28547804,3013.7,3013.1,0.00498206]
[1763446917051,2.44806168,3013.7,3013.1,0.00498206]
[1763446917260,0.04137804,3013.7,3013.1,0.00498206]
[1763446918557,0.04137804,3013.7,3013.6,0.2343]
[1763446919459,0.73880651,3014.9,3013.6,0.2343]
[1763446920557,0.2443,3013.7,3013.1,0.00498206]
[1763446921761,5.48229405,3015.4,3013.8,0.2343]
[1763446921953,2.53918364,3015.0,3013.8,0.2343]
[1763446922158,0.74281484,3014.9,3013.8,0.2343]
[1763446922649,0.00338421,3014.9,3014.4,0.1486]
[1763446923049,0.00338421,3014.9,3013.6,2.40668364]
[1763446923653,2.41006785,3014.9,3013.5,0.1486]
[1763446923959,2.40668364,3014.6,3013.5,0.1486]
[1763446924350,2.40668364,3014.6,3013.1,0.00498206]
[1763446924551,2.40668364,3014.3,3013.1,0.00498206]
[1763446925056,0.1401,3014.4,3013.1,2.4116657]
[1763446925446,2.448,3014.3,3013.1,2.4116657]
[1763446926162,0.1401,3014.4,3013.1,2.4116657]
[1763446926658,0.73980818,3014.4,3013.4,2.40668364]
[1763446926862,1.18661041,3014.8,3013.8,0.1486]
[1763446927059,0.74025835,3014.7,3013.8,0.1486]
[1763446927260,0.74025835,3014.6,3013.8,0.1486]
[1763446927455,0.74025835,3014.5,3013.8,0.1486]
[1763446927763,0.74025835,3014.4,3013.8,0.1486]
[1763446927959,1.18661041,3014.8,3013.8,0.1486]
[1763446928157,0.74055983,3014.7,3014.0,2.40668364]
[1763446928459,0.74095952,3014.6,3014.0,2.40668364]
[1763446928759,0.74095952,3014.6,3013.8,0.1486]
[1763446928760,0.00338421,3014.9,3013.8,0.1486]
[1763446930256,0.00338421,3014.9,3014.0,2.40668364]
[1763446930465,0.74417717,3014.9,3014.8,0.2343]
[1763446931163,0.00338421,3014.9,3014.8,0.2343]
[1763446932056,1.18661041,3015.8,3015.2,0.2343]
[1763446932254,0.74232134,3015.7,3015.6,0.3829]
[1763446932457,1.18661041,3016.0,3015.6,0.3829]
[1763446932651,0.74232134,3015.9,3015.8,0.2343]
[1763446932854,1.18661041,3016.2,3015.8,0.2343]
[1763446933064,0.00347272,3016.2,3015.8,0.00427172]
[1763446933361,0.2443,3015.9,3015.8,0.00427172]
[1763446934168,0.74232134,3016.1,3015.8,0.00427172]
[1763446934466,0.00347272,3016.2,3015.8,0.00427172]
[1763446934467,0.74232134,3016.0,3015.8,0.00427172]
[1763446934662,0.98662134,3015.9,3015.8,0.00427172]
[1763446934860,0.2443,3015.9,3015.8,0.00427172]
[1763446938866,0.2443,3015.3,3015.2,0.00497356]
[1763446939169,1.92893175,3015.9,3015.2,0.00497356]
[1763446939463,0.74232134,3015.8,3015.2,0.00497356]
[1763446939768,0.2331,3015.3,3014.4,0.1486]
[1763446939965,0.2331,3015.3,3014.4,0.15130456]
[1763446940765,0.0049452,3015.2,3014.5,0.00497356]
[1763446940968,0.0049452,3015.2,3015.1,0.2338]
[1763446941171,0.74726654,3015.2,3015.1,0.2338]
[1763446941364,0.0049452,3015.2,3015.1,0.2338]
[1763446942261,0.0049452,3015.2,3014.5,2.75566435]
[1763446943368,0.0049452,3015.2,3015.1,0.2338]
[1763446944464,0.74726654,3015.2,3015.1,0.2338]
[1763446944670,0.98036654,3015.2,3014.5,0.00497356]
[1763446944867,0.74232134,3015.1,3014.5,0.00497356]
[1763446945062,0.74232134,3015.0,3014.5,0.00497356]
[1763446945271,0.74232134,3014.9,3014.5,0.00497356]
[1763446945472,0.0049452,3015.2,3014.5,0.00497356]
[1763446945670,0.2331,3014.6,3014.5,0.00497356]
[1763446945866,0.74232391,3014.9,3014.5,0.14747356]
[1763446946068,0.74232391,3014.8,3014.5,0.14747356]
[1763446946270,0.0049452,3015.2,3015.1,0.2338]
[1763446946573,0.74751417,3015.2,3015.1,0.2338]
[1763446946773,0.0049452,3015.2,3015.1,0.2338]
[1763446947473,0.74751417,3015.2,3015.0,0.1425]
[1763446947665,0.74256897,3015.1,3015.0,0.3787]
[1763446947869,0.0049452,3015.2,3015.0,0.3787]
[1763446948476,0.0049452,3015.2,3014.5,0.14747356]
[1763446948878,0.74751417,3015.2,3014.5,0.14747356]
[1763446949074,0.74256897,3015.1,3015.0,0.2362]
[1763446949472,0.0049452,3015.2,3014.5,0.14747356]
[1763446949672,0.2268,3014.6,3014.5,0.00497356]
[1763446951766,1.92917938,3014.9,3014.5,0.00497356]
[1763446951978,0.74256897,3014.8,3014.5,0.00497356]
[1763446952171,0.74256897,3014.7,3014.5,0.00497356]
[1763446952372,0.74256897,3014.6,3014.5,0.00497356]
[1763446952775,1.18661041,3014.9,3014.5,0.00497356]
[1763446953182,0.74256897,3014.8,3014.5,0.14737356]
[1763446953382,0.74256897,3014.7,3014.6,0.2362]
[1763446953780,1.18661041,3015.0,3014.6,0.2362]
[1763446954680,0.2268,3014.6,3014.5,0.00497356]
[1763446955983,0.74256897,3014.8,3014.5,0.14737356]
[1763446956183,0.74256897,3014.7,3014.5,0.14737356]
[1763446956383,0.96936897,3014.6,3014.5,0.00497356]
[1763446956779,0.2268,3014.6,3014.5,0.00497356]
[1763446957381,0.96936897,3014.6,3014.5,0.00497356]
[1763446957588,0.2268,3014.6,3014.5,0.00497356]
[1763446960086,1.18661041,3014.7,3014.4,0.00270456]
[1763446960087,0.3368,3014.5,3014.4,0.00270456]
[1763446960278,1.52341041,3014.5,3014.4,0.00270456]
[1763446960680,2.26597938,3014.5,3014.4,0.00270456]
[1763446960989,0.2268,3014.2,3014.1,0.00497356]
[1763446961488,0.2268,3014.2,3013.2,0.26966916]
[1763446961682,0.2268,3014.2,3013.0,0.1424]